bitfinex/quotes_ETHUSD_20240916
["timestamp","ask_amount","ask_price","bid_price","bid_amount"]
[1726479954328,4.34858,2299.6,2299.1,4.34951]
[1726479954566,15.05413,2300.0,2299.5,2.4311]
[1726479954567,4.34795,2300.0,2299.5,2.4311]
[1726479954828,4.34769,2300.1,2299.6,0.04249612]
[1726479955076,9.362489,2300.1,2299.6,0.04249612]
[1726479955259,5.014739,2300.1,2299.6,0.04249612]
[1726479955432,4.34739,2300.3,2299.7,4.34828]
[1726479955781,4.34739,2300.3,2299.8,2.303]
[1726479956068,4.34791,2300.0,2299.8,2.3451743]
[1726479956395,4.34798,2300.0,2299.8,0.0421743]
[1726479956539,4.34773,2300.1,2299.8,0.0421743]
[1726479956861,8.69548,2300.1,2299.9,0.0421743]
[1726479957167,4.34773,2300.1,2299.6,6.65764]
[1726479957358,4.34773,2300.1,2300.0,0.0421743]
[1726479957540,4.34745,2300.2,2299.7,4.34838]
[1726479957766,4.34681,2300.6,2300.1,6.64061]
[1726479958077,4.34655,2300.7,2300.2,4.3895143]
[1726479958386,4.34625,2300.9,2300.4,4.34704]
[1726479958766,4.34624,2300.9,2300.5,0.04147733]
[1726479958950,4.34631,2300.8,2300.5,0.04147733]
[1726479959152,4.34624,2300.9,2300.5,0.04147733]
[1726479959463,8.69251,2300.9,2300.6,0.04146661]
[1726479959660,8.69251,2300.9,2300.4,4.34703]
[1726479959971,4.34624,2300.9,2300.7,0.04146661]
[1726479960157,4.34589,2301.1,2300.5,6.75057]
[1726479960358,4.34593,2301.0,2300.8,0.04146661]
[1726479960691,4.34623,2300.9,2300.5,2.4037]
[1726479960845,4.3464,2300.8,2300.5,2.4037]
[1726479961504,4.3464,2300.8,2300.2,21.21159843]
[1726479961505,4.3468,2300.6,2300.2,8.796]
[1726479961648,4.34769,2300.1,2299.9,2.2751]
[1726479961855,8.69543,2300.1,2299.9,2.2751]
[1726479962055,4.34784,2300.0,2299.7,2.2751]
[1726479962490,4.34769,2300.1,2299.7,2.2751]
[1726479962658,8.69547,2300.1,2299.7,2.2751]
[1726479962994,4.34783,2300.0,2299.7,2.2751]
[1726479963286,4.34803,2299.9,2299.4,13.14496]
[1726479963495,8.69615,2299.9,2299.5,2.2751]
[1726479963793,4.34821,2299.8,2299.5,2.2751]
[1726479964091,4.34755,2300.2,2299.5,2.2751]
[1726479964403,4.34755,2300.2,2299.7,4.34836]
[1726479964593,4.34739,2300.3,2299.6,4.34842]
[1726479964594,4.34764,2300.1,2299.6,4.34842]
[1726479964803,4.34739,2300.3,2299.6,5.50005801]
[1726479964956,4.34765,2300.1,2299.6,5.50005801]
[1726479965153,7.45046,2300.5,2299.5,2.2751]
[1726479965154,4.34842,2299.7,2299.5,2.2751]
[1726479965485,4.783242,2299.7,2299.2,5.2923]
[1726479965788,4.34829,2299.8,2299.2,9.64162]
[1726479965995,4.34829,2299.8,2299.3,4.34914]
[1726479966299,4.3481,2299.9,2299.4,5.7232356]
[1726479966452,4.34797,2300.0,2299.4,5.7232356]
[1726479966453,4.34795,2300.0,2299.4,5.7232356]
[1726479966652,4.34802,2299.9,2299.4,10.0720956]
[1726479966855,4.34795,2300.0,2299.5,1.00720956]
[1726479967096,6.75516,2300.2,2299.5,1.00720956]
[1726479967097,4.34764,2300.1,2299.6,6.64078]
[1726479967267,8.77965,2300.2,2299.7,4.3483]
[1726479967598,4.43206,2300.2,2299.7,4.3483]
[1726479967766,4.34775,2300.1,2299.6,7.97790652]
[1726479968172,4.34775,2300.1,2299.6,12.32639652]
[1726479968367,4.43206,2300.2,2299.7,4.34834]
[1726479968580,4.34763,2300.1,2299.7,4.34834]
[1726479968996,4.34786,2300.0,2299.6,7.97790652]
[1726479969295,4.34786,2300.0,2299.6,2.2923]
[1726479969800,4.34811,2299.9,2299.6,2.2923]
[1726479970359,4.34811,2299.9,2299.3,2.4835]
[1726479970705,8.69741,2299.6,2299.3,2.4835]
[1726479970903,4.34868,2299.6,2299.3,2.4835]
[1726479971255,8.69736,2299.6,2299.3,2.4835]
[1726479971459,4.34868,2299.6,2299.4,0.03956191]
[1726479971680,4.34879,2299.5,2299.4,0.03956191]
[1726479972161,4.34848,2299.7,2299.4,0.03956191]
[1726479972393,4.34832,2299.8,2299.4,0.03956191]
[1726479972594,0.0845,2300.2,2299.6,4.34853]
[1726479972811,4.34781,2300.1,2299.7,2.2689]
[1726479973009,0.0845,2300.2,2299.9,4.34785]
[1726479973181,0.0845,2300.2,2299.8,8.6962]
[1726479973371,0.0845,2300.2,2299.9,1.55398907]
[1726479973574,0.0845,2300.2,2299.9,1.59392635]
[1726479975680,4.34729,2300.3,2299.9,1.50942635]
[1726479976311,4.34782,2300.0,2299.9,0.03993728]
[1726479976817,4.34807,2299.9,2299.4,6.83426]
[1726479977112,4.34807,2299.9,2299.5,0.24854]
[1726479977301,4.34807,2299.9,2299.4,6.83426]
[1726479978282,4.34834,2299.8,2299.4,2.4854]
[1726479979187,8.6966,2299.8,2299.4,2.4854]
[1726479979383,4.3486,2299.6,2299.2,11.1029]
[1726479979588,4.34829,2299.8,2299.3,4.3491]
[1726479980511,8.69703,2299.7,2299.2,11.1029]
[1726479980670,4.34868,2299.6,2299.2,11.1029]
[1726479981106,4.34885,2299.5,2299.2,11.1029]
[1726479981279,8.69783,2299.5,2299.2,8.796]
[1726479982295,4.34897,2299.4,2299.2,8.796]
[1726479984018,4.34868,2299.6,2299.2,8.796]
[1726479984371,4.34845,2299.7,2299.2,8.796]
[1726479984572,4.34831,2299.8,2299.2,13.1452]
[1726479984798,4.34896,2299.4,2299.3,2.3494]
[1726479985381,4.34849,2299.7,2299.3,2.3494]
[1726479985572,4.34869,2299.6,2299.3,2.3494]
[1726479986013,8.69701,2299.7,2299.3,2.3494]
[1726479986217,4.34858,2299.6,2299.3,2.3494]
[1726479986715,4.34879,2299.5,2299.3,2.3494]
[1726479986920,7.77582898,2300.1,2299.2,8.796]
[1726479986921,4.34914,2299.3,2299.2,8.796]
[1726479987089,8.69804,2299.4,2299.2,8.796]
[1726479987277,8.69809,2299.4,2299.2,8.796]
[1726479987617,4.34897,2299.4,2299.2,8.796]
[1726479987835,8.69811,2299.4,2299.2,8.796]
[1726479987997,4.34914,2299.3,2299.2,8.796]
[1726479989035,4.34897,2299.4,2299.2,8.796]
[1726479989350,4.34914,2299.3,2299.2,8.796]
[1726479991339,8.69807,2299.4,2299.2,8.796]
[1726479991636,8.69828,2299.3,2299.2,8.796]
[1726479994100,4.34939,2299.2,2298.8,2.3823]
[1726479994516,4.34972,2299.0,2298.8,2.3823]
[1726479995412,4.34939,2299.2,2298.8,2.3823]
[1726479995727,8.69883,2299.2,2298.8,4.41575485]
[1726479995936,4.34954,2299.1,2298.8,4.41575485]
[1726479997404,4.34974,2299.0,2298.8,2.3823]
[1726479998053,4.3499,2298.9,2298.8,2.3823]
[1726479998414,4.34975,2299.0,2298.8,2.3823]
[1726479998835,4.34962,2299.1,2298.8,3.98071985]
[1726479999809,4.34962,2299.1,2298.8,2.3823]
[1726480000027,4.34962,2299.1,2298.8,6.2856888]
[1726480000353,4.34936,2299.2,2298.8,6.2856888]
[1726480000509,4.34936,2299.2,2298.8,10.6357488]
[1726480000713,4.34936,2299.2,2298.8,9.09890168]
[1726480001007,4.34926,2299.3,2299.0,3.9033888]
[1726480001249,11.81841,2299.7,2299.0,3.9033888]
[1726480001250,4.34909,2299.4,2299.0,3.9033888]
[1726480001412,4.34909,2299.4,2299.1,2.3955]
[1726480001607,4.34909,2299.4,2299.2,3.9033888]
[1726480001810,8.69766,2299.5,2299.2,3.9033888]
[1726480002073,8.69771,2299.5,2299.2,3.9033888]
[1726480002351,4.34832,2299.8,2299.3,4.34903]
[1726480002562,4.34772,2300.1,2299.6,8.2518688]
[1726480002852,4.34765,2300.1,2299.9,2.2872]
[1726480003010,4.34753,2300.2,2299.9,2.2872]
[1726480003011,4.34746,2300.2,2299.9,2.2872]
[1726480003442,4.34728,2300.3,2299.9,2.2872]
[1726480003657,6.70239,2300.5,2300.0,3.9033888]
[1726480003858,6.70239,2300.5,2299.9,2.2872]
[1726480003859,3.164939,2300.5,2299.9,2.2872]
[1726480004149,4.34743,2300.3,2299.9,2.2872]
[1726480004349,4.34765,2300.1,2299.9,2.2872]
[1726480004507,8.69487,2300.3,2299.9,2.2872]
[1726480005036,4.34749,2300.2,2299.9,2.2872]
[1726480006657,4.34682,2300.6,2299.9,4.265176]
[1726480006831,4.34707,2300.4,2300.0,4.34772]
[1726480007249,4.34682,2300.6,2300.0,5.65252007]
[1726480007415,4.34688,2300.5,2300.0,5.65252007]
[1726480007818,4.34688,2300.5,2300.0,10.00025007]
[1726480008012,4.34688,2300.5,2300.0,5.65252007]
[1726480008448,4.34688,2300.5,2300.0,5.65251007]
[1726480009557,4.34707,2300.4,2300.0,5.65251007]
[1726480010838,8.69428,2300.4,2300.0,1.30480007]
[1726480011063,4.34707,2300.4,2300.0,1.30480007]
[1726480011267,4.34839,2299.7,2299.3,4.34911]
[1726480011563,2.3682,2300.3,2299.3,4.050411]
[1726480011866,4.34855,2299.7,2299.3,2.3755]
[1726480012366,4.34885,2299.5,2299.3,3.9276]
[1726480012550,4.34885,2299.5,2299.3,2.3755]
[1726480013360,8.69735,2299.6,2299.3,2.3755]
[1726480013573,4.34888,2299.5,2299.3,2.3755]
[1726480013787,4.34942,2299.2,2298.8,2.4996]
[1726480014451,4.3499,2298.9,2298.8,2.4996]
[1726480014626,4.34962,2299.1,2298.8,2.4996]
[1726480014829,4.34976,2299.0,2298.8,3.62916]
[1726480015067,4.34962,2299.1,2298.8,3.62916]
[1726480015581,4.34954,2299.1,2298.8,3.62916]
[1726480016069,4.34972,2299.0,2298.8,3.62916]
[1726480018070,4.34972,2299.0,2298.8,2.4996]
[1726480018365,4.34972,2299.0,2298.7,8.796]
[1726480020327,4.34972,2299.0,2298.6,11.98362068]
[1726480021248,4.34972,2299.0,2298.6,7.63324068]
[1726480021448,4.34972,2299.0,2298.6,11.98369068]
[1726480021652,4.34947,2299.2,2298.7,5.98368807]
[1726480021850,4.34904,2299.4,2298.9,5.23604068]
[1726480022031,4.34904,2299.4,2299.0,0.08697902]
[1726480022236,4.34904,2299.4,2298.9,9.58581068]
[1726480022435,4.34904,2299.4,2299.0,1.2786901]
[1726480022636,9.7438,2299.9,2299.0,1.19171107]
[1726480022931,4.34935,2299.2,2298.8,9.7313]
[1726480023136,4.34935,2299.2,2298.8,2.3313]
[1726480023336,4.34917,2299.3,2298.8,6.68129]
[1726480023550,4.34917,2299.3,2298.9,1.547745]
[1726480023875,4.3494,2299.2,2298.9,1.547745]
[1726480024034,4.34862,2299.6,2298.8,2.3313]
[1726480024235,4.34945,2299.2,2298.8,2.3313]
[1726480024488,4.34953,2299.1,2298.8,2.3313]
[1726480024657,4.34953,2299.1,2298.8,4.07321102]
[1726480024873,4.34934,2299.2,2298.8,4.07321102]
[1726480025594,4.34917,2299.3,2298.8,4.07321102]
[1726480025595,4.34917,2299.3,2298.8,4.16019802]
[1726480025754,4.3494,2299.2,2298.9,1.7219331]
[1726480026608,4.3494,2299.2,2298.8,4.16019783]
[1726480026748,4.34917,2299.3,2298.8,8.51025783]
[1726480026950,4.34893,2299.5,2298.9,5.23604068]
[1726480027149,4.34858,2299.6,2299.2,2.4584]
[1726480027386,4.34858,2299.6,2299.2,11.2544]
[1726480027591,4.34835,2299.8,2299.3,4.43602239]
[1726480027792,4.34866,2299.6,2299.3,1.56904224]
[1726480027992,4.34878,2299.5,2299.2,11.2544]
[1726480028198,4.34878,2299.5,2299.2,13.27567056]
[1726480028491,8.69763,2299.5,2299.2,13.27567056]
[1726480028699,4.34878,2299.5,2299.2,13.27567056]
[1726480032595,4.34872,2299.6,2299.2,13.27567056]
[1726480032898,4.34872,2299.6,2299.3,2.15273023]
[1726480033488,4.34841,2299.7,2299.3,6.05485194]
[1726480033800,4.34859,2299.6,2299.3,6.14181884]
[1726480034099,4.34859,2299.6,2299.4,2.37667894]
[1726480037814,8.69729,2299.6,2299.4,2.37667894]
[1726480037972,8.69727,2299.6,2299.4,2.37667894]
[1726480038585,4.34859,2299.6,2299.4,2.37667894]
[1726480039609,8.69727,2299.6,2299.4,2.37667894]
[1726480040192,8.69828,2299.3,2299.2,8.796]
[1726480040397,8.69828,2299.3,2298.8,2.3267]
[1726480040398,4.3499,2298.9,2298.8,2.3267]
[1726480041320,4.3499,2298.9,2298.4,0.0379352]
[1726480041321,4.35066,2298.5,2298.4,0.0379352]
[1726480041984,11.02442,2298.5,2298.4,0.0379352]
[1726480042216,15.37508,2298.5,2298.4,0.0379352]
[1726480043638,19.72574,2298.5,2298.4,0.0379352]
[1726480043947,17.73786617,2298.5,2298.4,0.0379352]
[1726480044224,11.02442,2298.5,2298.4,0.0379352]
[1726480046295,15.37508,2298.5,2298.4,0.0379352]
[1726480049997,11.02442,2298.5,2298.4,0.0379352]
[1726480050687,11.02442,2298.5,2298.4,0.07884156]
[1726480051340,8.70132,2298.5,2298.4,0.07884156]
[1726480051495,4.35066,2298.5,2298.4,0.07884156]
[1726480054699,4.35066,2298.5,2298.4,0.07884156]
[1726480055549,4.35048,2298.6,2298.4,0.07884156]
[1726480056020,4.35048,2298.6,2298.4,2.50744156]
[1726480056218,4.35048,2298.6,2298.4,3.59222128]
[1726480056448,4.35066,2298.5,2298.4,0.07884156]
[1726480056759,11.06642,2298.5,2298.4,0.07884156]
[1726480057056,15.41708,2298.5,2298.4,0.07884156]
[1726480057353,15.41708,2298.5,2298.4,0.0379352]
[1726480057554,16.958788,2298.5,2298.4,0.0379352]
[1726480057912,21.309448,2298.5,2298.4,0.0379352]
[1726480058117,16.958788,2298.5,2298.4,0.0379352]
[1726480059162,21.309448,2298.5,2298.4,0.0379352]
[1726480059326,24.309448,2298.5,2298.4,0.0379352]
[1726480059516,32.79956971,2298.5,2298.4,0.0379352]
[1726480060041,37.15022971,2298.5,2298.4,0.0379352]
[1726480061421,17.40792,2297.8,2297.7,0.0379352]
[1726480062259,26.3479,2297.8,2297.7,0.0379352]
[1726480062419,24.0184,2297.8,2297.7,0.0379352]
[1726480062621,19.66642,2297.8,2297.7,0.0379352]
[1726480064442,10.96246,2297.8,2297.7,0.0379352]
[1726480064646,8.70396,2297.8,2297.7,0.0379352]
[1726480064882,6.82342,2298.0,2297.7,0.0379352]
[1726480065037,4.35198,2297.8,2297.7,0.0379352]
[1726480065241,4.35135,2298.2,2297.7,0.0379352]
[1726480065469,4.35136,2298.2,2297.7,2.4022352]
[1726480065668,4.35161,2298.0,2297.7,3.03267089]
[1726480065871,4.35188,2297.9,2297.7,3.03267089]
[1726480066039,4.35188,2297.9,2297.7,2.4022352]
[1726480066442,4.35161,2298.0,2297.7,2.4022352]
[1726480066643,4.3518,2297.9,2297.7,2.4022352]
[1726480068338,4.35161,2298.0,2297.7,2.4022352]
[1726480068537,4.35161,2298.0,2297.7,3.07770472]
[1726480068774,4.35182,2297.9,2297.7,3.07770472]
[1726480068973,4.35182,2297.9,2297.7,2.4022352]
[1726480069662,4.35198,2297.8,2297.7,2.4022352]
[1726480069877,4.35198,2297.8,2297.7,0.0379352]
[1726480069878,8.70396,2297.8,2297.7,0.0379352]
[1726480072775,4.35198,2297.8,2297.7,0.0379352]
[1726480073138,4.35191,2297.9,2297.7,0.0379352]
[1726480073562,4.35198,2297.8,2297.7,0.0379352]
[1726480075534,4.35189,2297.9,2297.7,0.0379352]
[1726480075843,4.35198,2297.8,2297.7,0.0379352]
[1726480076452,4.35198,2297.8,2297.7,0.07758643]
[1726480076655,4.35198,2297.8,2297.7,0.0379352]
[1726480076852,4.35198,2297.8,2297.7,0.07758643]
[1726480077053,4.35198,2297.8,2297.7,0.0379352]
[1726480077252,4.35198,2297.8,2297.7,0.07758643]
[1726480077464,4.35198,2297.8,2297.7,0.0379352]
[1726480077672,4.35198,2297.8,2297.7,0.07758643]
[1726480077836,4.35198,2297.8,2297.7,0.0379352]
[1726480078041,4.35198,2297.8,2297.7,0.07758643]
[1726480078252,4.35181,2297.9,2297.7,0.0379352]
[1726480078456,4.35181,2297.9,2297.7,0.07758643]
[1726480078667,4.35198,2297.8,2297.7,0.0379352]
[1726480079891,9.574339,2297.8,2297.7,0.0379352]
[1726480080188,11.03096,2297.8,2297.7,0.0379352]
[1726480080394,15.38294,2297.8,2297.7,0.0379352]
[1726480080689,23.75804171,2297.8,2297.7,0.0379352]
[1726480081074,19.85592,2297.8,2297.7,0.0379352]
[1726480081394,38.96779088,2297.8,2297.7,0.0379352]
[1726480081750,35.06566917,2297.8,2297.7,0.0379352]
[1726480082048,26.12568917,2297.8,2297.7,0.0379352]
[1726480082481,23.12568917,2297.8,2297.7,0.0379352]
[1726480083095,38.96779088,2297.8,2297.7,0.0379352]
[1726480083294,34.61581088,2297.8,2297.7,0.0379352]
[1726480086665,34.61581088,2297.8,2297.1,0.0379352]
[1726480086666,8.70624,2297.2,2297.1,0.0379352]
[1726480086871,10.98454,2297.2,2297.1,0.0379352]
[1726480087087,15.33766,2297.2,2297.1,0.0379352]
[1726480087494,35.70232171,2297.2,2297.1,0.0379352]
[1726480087708,31.11432171,2297.2,2297.1,0.0379352]
[1726480087991,18.61739217,2297.2,2297.1,0.0379352]
[1726480088197,15.50596,2297.2,2297.1,0.0379352]
[1726480088505,26.76120171,2297.2,2297.1,0.0379352]
[1726480088717,13.06335,2296.5,2296.4,0.0379352]
[1726480089018,4.35445,2296.5,2296.4,0.0379352]
[1726480089307,4.35411,2296.7,2296.4,2.3362352]
[1726480089473,4.35435,2296.6,2296.4,3.00535572]
[1726480089671,4.35411,2296.7,2296.4,2.3362352]
[1726480089863,8.70761,2296.9,2296.4,2.3362352]
[1726480090067,4.354,2296.8,2296.4,2.3362352]
[1726480090299,4.3541,2296.7,2296.4,2.3362352]
[1726480090607,11.37212171,2297.3,2296.4,2.3362352]
[1726480090608,4.35374,2296.9,2296.4,2.3362352]
[1726480090778,4.35397,2296.8,2296.4,2.3362352]
[1726480090976,4.35445,2296.5,2296.4,2.3362352]
[1726480091193,4.35445,2296.5,2296.4,0.0379352]
[1726480091607,8.7089,2296.5,2296.4,0.0379352]
[1726480091758,9.81805,2296.5,2296.4,0.0379352]
[1726480091959,14.1725,2296.5,2296.4,0.0379352]
[1726480092174,16.4445,2296.5,2296.4,0.0379352]
[1726480092399,20.79895,2296.5,2296.4,0.0379352]
[1726480092568,28.1534,2296.5,2296.4,0.0379352]
[1726480092781,28.7034,2296.5,2296.4,0.0379352]
[1726480092989,23.79895,2296.5,2296.4,0.0379352]
[1726480093205,17.42008,2296.2,2296.1,0.00080435]
[1726480093380,24.32220171,2296.2,2296.1,0.00080435]
[1726480093823,19.96718171,2296.2,2296.1,0.00080435]
[1726480093973,16.06506,2296.2,2296.1,0.00080435]
[1726480094323,4.35502,2296.2,2296.1,0.00080435]
[1726480094821,4.35445,2296.5,2296.1,0.04228594]
[1726480094979,4.35445,2296.5,2296.1,0.00080435]
[1726480095180,4.35417,2296.7,2296.2,0.04147083]
[1726480095490,4.35417,2296.7,2296.3,2.4499]
[1726480095491,4.35422,2296.7,2296.3,2.4499]
[1726480095694,4.35451,2296.5,2296.2,0.04147083]
[1726480095929,0.435422,2296.7,2296.1,0.00080435]
[1726480095930,4.35483,2296.3,2296.1,0.00080435]
[1726480096214,8.71004,2296.2,2296.1,0.00080435]
[1726480097021,4.790313,2296.3,2296.1,0.00080435]
[1726480097228,4.35483,2296.3,2296.1,0.00080435]
[1726480097725,4.35502,2296.2,2296.1,0.00080435]
[1726480098023,9.581025,2296.2,2296.1,0.00080435]
[1726480098209,8.71004,2296.2,2296.1,0.00080435]
[1726480098883,15.49876,2296.2,2296.1,0.00080435]
[1726480099079,18.49876,2296.2,2296.1,0.00080435]
[1726480099378,22.85378,2296.2,2296.1,0.00080435]
[1726480099577,21.219623,2296.2,2296.1,0.00080435]
[1726480100220,29.47676471,2296.2,2296.1,0.00080435]
[1726480100464,29.47676471,2296.2,2295.4,1.18]
[1726480100465,7.90578,2295.8,2295.4,0.76816379]
[1726480100626,7.90578,2295.8,2295.0,0.0379352]
[1726480100627,16.0713,2295.1,2295.0,0.0379352]
[1726480100822,19.97342171,2295.1,2295.0,0.0379352]
[1726480101149,19.97342171,2295.1,2293.7,3.90212171]
[1726480101150,8.71952,2293.7,2293.6,0.0379352]
[1726480101320,4.35976,2293.7,2293.6,0.0379352]
[1726480101517,2.304,2293.9,2293.6,0.0379352]
[1726480101751,6.66272,2294.3,2293.7,3.90212171]
[1726480101909,4.3583,2294.5,2294.1,3.90212171]
[1726480102115,4.3583,2294.5,2293.6,0.0379352]
[1726480102116,2.304,2294.7,2294.4,3.90212171]
[1726480102310,2.304,2294.7,2294.6,3.90212171]
[1726480102511,2.4329,2295.0,2294.6,7.80424342]
[1726480102741,4.35491,2296.3,2294.9,3.90212171]
[1726480102742,4.35695,2295.2,2294.9,3.90212171]
[1726480103068,2.4329,2295.3,2295.1,3.90212171]
[1726480103363,2.67619,2295.3,2295.1,3.90212171]
[1726480103529,2.67619,2295.3,2294.9,3.90212171]
[1726480103726,2.67619,2295.3,2295.1,3.90212171]
[1726480103944,2.3318,2295.6,2295.1,3.90212171]
[1726480104255,4.35658,2295.4,2295.1,3.90212171]
[1726480104461,4.35636,2295.5,2295.1,3.90212171]
[1726480104955,4.35653,2295.4,2295.3,3.90212171]
[1726480105138,5.025346,2295.4,2295.1,3.90212171]
[1726480105451,4.35694,2295.2,2294.9,3.90212171]
[1726480105753,4.8593546,2295.3,2295.1,3.90212171]
[1726480105960,0.668816,2295.4,2295.1,3.90212171]
[1726480106253,2.3318,2295.6,2295.3,3.90212171]
[1726480106254,8.71294,2295.5,2295.3,3.90212171]
[1726480106427,4.35645,2295.5,2295.3,3.90212171]
[1726480106763,5.025355,2295.4,2295.3,3.90212171]
[1726480107355,5.025355,2295.4,2295.1,3.90212171]
[1726480107513,0.668825,2295.4,2295.1,3.90212171]
[1726480107716,0.668825,2295.4,2294.6,3.90212171]
[1726480107717,2.3318,2295.6,2294.6,4.35788]
[1726480107920,2.3318,2295.6,2295.2,3.90212171]
[1726480108155,4.35672,2295.3,2295.2,3.90212171]
[1726480108457,8.71344,2295.3,2295.2,3.90212171]
[1726480109054,4.35672,2295.3,2295.2,3.90212171]
[1726480109254,4.35658,2295.4,2295.2,3.90212171]
[1726480109570,0.23318,2295.5,2295.3,3.90212171]
[1726480109858,6.68807,2295.6,2295.3,3.90212171]
[1726480109859,2.3318,2295.6,2295.3,3.90212171]
[1726480110070,4.35542,2296.0,2295.5,3.90212171]
[1726480110365,0.435545,2296.0,2295.9,3.90212171]
[1726480110719,0.005938,2296.5,2295.9,3.90212171]
[1726480111068,0.005938,2296.5,2296.4,3.90212171]
[1726480112069,0.005938,2296.5,2296.3,4.81506558]
[1726480115330,5.2318558,2296.5,2296.3,4.81506558]
[1726480115542,4.360408,2296.5,2296.3,4.81506558]
[1726480115769,0.005938,2296.5,2296.3,4.81506558]
[1726480121984,0.005938,2296.5,2296.4,6.69834]
[1726480122340,2.4012,2297.2,2296.9,4.81506558]
[1726480122678,4.4118706,2297.6,2296.9,4.81506558]
[1726480122679,0.675427,2297.1,2296.9,4.81506558]
[1726480122880,4.35296,2297.3,2296.9,4.81506558]
[1726480123103,10.98708,2297.5,2296.9,4.81506558]
[1726480123391,5.45749706,2297.4,2296.9,4.81506558]
[1726480123951,4.35297,2297.3,2296.9,4.81506558]
[1726480124347,4.35322,2297.2,2296.9,4.81506558]
[1726480125489,8.7065,2297.2,2296.9,4.81506558]
[1726480126055,8.70814,2296.7,2296.6,4.81506558]
[1726480126257,4.35455,2296.5,2295.8,2.3892]
[1726480126466,4.35455,2296.5,2295.8,6.74495]
[1726480126742,5.225024,2296.7,2296.0,4.3553]
[1726480126896,0.7502224,2296.6,2295.9,8.71092]
[1726480127200,0.7502224,2296.6,2296.2,2.3057]
[1726480127498,0.870814,2296.7,2296.2,11.01555]
[1726480127669,4.35362,2297.0,2296.6,4.81506558]
[1726480127868,2.3656,2297.1,2296.6,4.81506558]
[1726480128190,4.3537,2296.9,2295.9,5.3876]
[1726480128400,4.35466,2296.4,2295.9,2.3876]
[1726480128957,6.70216,2296.5,2295.9,2.3876]
[1726480129258,0.23656,2297.0,2296.0,4.35537]
[1726480129259,4.35418,2296.7,2296.0,4.35537]
[1726480129715,4.35386,2296.9,2296.5,4.81506558]
[1726480130002,4.35408,2296.7,2296.5,4.81506558]
[1726480130155,4.35388,2296.8,2296.5,4.81506558]
[1726480130355,8.70765,2296.9,2296.5,4.81506558]
[1726480130578,0.5032452,2296.8,2296.5,4.81506558]
[1726480130981,0.678632,2297.0,2296.5,9.16946558]
[1726480131314,4.35326,2297.2,2296.9,4.81506558]
[1726480131315,4.35314,2297.2,2296.9,4.81506558]
[1726480132119,2.3728,2297.4,2296.4,2.4883]
[1726480132120,4.35361,2297.0,2296.4,2.4883]
[1726480132306,4.35361,2297.0,2296.6,4.81506558]
[1726480133111,4.35331,2297.1,2296.6,4.81506558]
[1726480133112,8.70673,2297.1,2296.6,4.81506558]
[1726480133281,2.4004,2296.9,2296.6,4.81506558]
[1726480133811,4.788831,2297.0,2296.6,4.81506558]
[1726480134493,4.788851,2297.0,2296.6,4.81506558]
[1726480135319,4.35369,2296.9,2296.6,4.81506558]
[1726480135521,0.4789021,2296.8,2296.6,4.81506558]
[1726480135892,0.4789021,2296.8,2296.3,3.0]
[1726480136605,0.435331,2297.0,2296.4,2.3695]
[1726480136912,4.789001,2297.0,2296.4,2.3695]
[1726480137213,4.789001,2297.0,2296.9,3.91136279]
[1726480137769,4.789001,2297.0,2296.0,0.59773058]
[1726480137770,4.788861,2297.0,2295.9,4.35542]
[1726480137977,8.70828,2296.7,2296.6,3.91136279]
[1726480140104,4.35432,2296.6,2296.3,4.81472996]
[1726480140290,4.35513,2296.2,2296.0,2.4383]
[1726480140494,4.35513,2296.2,2295.9,0.59777597]
[1726480140495,4.35529,2296.1,2295.7,2.3018]
[1726480140799,4.790623,2296.2,2295.7,2.89957597]
[1726480141117,9.145773,2296.2,2295.7,2.3018]
[1726480141327,4.35521,2296.1,2295.7,2.89957597]
[1726480141484,4.790623,2296.2,2295.7,2.3018]
[1726480141683,4.35452,2296.5,2296.1,4.81472996]
[1726480141903,4.35474,2296.4,2296.1,7.25422996]
[1726480142222,8.70946,2296.4,2296.1,7.25422996]
[1726480142385,4.35473,2296.4,2296.1,7.25422996]
[1726480142583,4.35483,2296.3,2296.1,7.25422996]
[1726480142786,4.35483,2296.3,2296.1,4.81472996]
[1726480143082,5.225786,2296.3,2296.1,4.81472996]
[1726480143287,4.35483,2296.3,2296.1,4.81472996]
[1726480143592,4.35466,2296.4,2296.1,4.81472996]
[1726480143827,4.35501,2296.3,2296.1,4.81472996]
[1726480143996,5.225977,2296.3,2296.1,4.81472996]
[1726480144625,0.870967,2296.3,2296.1,4.81472996]
[1726480144927,4.35466,2296.4,2296.1,4.81472996]
[1726480145226,4.35454,2296.5,2296.1,4.81472996]
[1726480145412,5.69054835,2297.5,2295.7,5.41261875]
[1726480145413,4.35391,2296.8,2296.4,4.81472996]
[1726480145623,4.35301,2297.3,2296.5,2.3888]
[1726480145837,2.3902,2297.5,2296.5,2.3888]
[1726480146012,4.35416,2296.7,2296.2,2.3888]
[1726480146395,4.35389,2296.8,2296.2,2.3888]
[1726480146822,6.74382,2297.0,2296.2,2.3888]
[1726480146823,4.3537,2296.9,2296.5,4.81472996]
[1726480147023,4.35359,2297.0,2296.5,4.81472996]
[1726480147233,5.027972,2297.0,2296.6,2.3888]
[1726480149017,0.674382,2297.0,2296.6,2.3888]
[1726480149338,0.674382,2297.0,2296.5,4.81472996]
[1726480149339,5.028002,2297.0,2296.5,4.81472996]
[1726480149545,4.35362,2297.0,2296.5,4.81472996]
[1726480149901,4.59771906,2297.4,2296.6,2.4029]
[1726480149902,0.24496906,2297.4,2296.6,2.4029]
[1726480150149,4.35322,2297.2,2296.7,0.24029]
[1726480150441,4.35333,2297.1,2296.6,2.4029]
[1726480151238,4.35333,2297.1,2296.8,4.81472996]
[1726480151543,0.435311,2297.2,2296.8,4.81472996]
[1726480151544,4.788481,2297.2,2296.8,4.81472996]
[1726480151711,4.3534,2297.1,2296.8,4.81472996]
[1726480152345,4.35334,2297.1,2296.8,4.81472996]
[1726480152640,4.788481,2297.2,2296.8,4.81472996]
[1726480153352,4.35294,2297.3,2296.8,4.81472996]
[1726480153906,8.7644406,2297.6,2296.9,2.3123]